Cogmind - Beta 13 *** ADVENTURER MODE // 2024.04.07 @ 15:04:42 Player: Ghosty Result: Destroyed by Enhanced Grunt with Neutron Cannon Performance ------------- Evolutions (3) 1500 Regions Visited (8) 1600 Robots Destroyed (75) 375 Value Destroyed (2641) 2641 Prototype IDs (12) 240 Alien Tech Used (0) 0 Bonus (300) 300 TOTAL SCORE: 6656 Bonus ------- Met Data Miner 300 Cogmind --------- Core Integrity 0/700 Matter 295/300 Energy 100/100 System Corruption 15% Temperature Cool (0) Movement Walking (330) Ox3 Location -7/Data Miner Parts ------- > --- POWER (2) -------- (None) > --- PROPULSION (4) --- Carbon-fiber Leg > --- UTILITY (5) ------ Advanced Heat Sink Medium Storage Unit High-capacity Storage Unit Melee Analysis Suite > --- WEAPON (2) ------- Ripper > --- INVENTORY (20) --- Armored Treads Improved Heat Sink High-capacity Storage Unit High-capacity Storage Unit Terrain Scanner ECM Suite Makeshift Light Armor Plating Makeshift Light Armor Plating Improved Shield Generator Improved Shield Generator Makeshift System Shield Shock Rifle Minigun Minigun Gauss Cannon Gauss Cannon Gauss Cannon Gauss Cannon Mace Peak State ------------ > --- POWER ------------ Improved Deuterium Engine Micro Nuclear Core > --- PROPULSION ------- Advanced Treads Advanced Treads Advanced Treads > --- UTILITY ---------- Medium Storage Unit High-capacity Storage Unit Hardened Medium Armor Plating Hardened Medium Armor Plating Hardened Medium Armor Plating > --- WEAPON ----------- Improved EM Pulse Cannon KE Penetrator > --- INVENTORY -------- Micro Nuclear Core Micro Nuclear Core Neutrino Core Improved Heat Sink Advanced Heat Sink High-capacity Storage Unit High-capacity Storage Unit Terrain Scanner Hardened Medium Armor Plating Hardened Medium Armor Plating Improved Shield Generator Improved EM Pulse Cannon Minigun Minigun Gauss Cannon Gauss Cannon Gauss Cannon Gauss Cannon [Rating: 44] Favorites ----------- Power Micro Nuclear Core Engine Improved Deuterium Engine Power Core Micro Nuclear Core Propulsion Advanced Treads Treads Advanced Treads Leg Aluminum Leg Utility Hardened Medium Armor Plating Device Terrain Scanner Storage Medium Storage Unit Processor Melee Analysis Suite Protection Hardened Medium Armor Plating Weapon Assault Rifle Energy Gun Arc Projector Energy Cannon Improved EM Pulse Cannon Ballistic Gun Assault Rifle Ballistic Cannon Gauss Cannon Launcher Shock Bomb Launcher Impact Weapon Mace Slashing Weapon Ripper Build | -11 -10 -9 -9 -8 -7 -7 -7 -7 ------- Run | Yrd Mat Mat Sto Mat Fac Low Low Dat Slots Evolved 6 | . . 2 . 2 2 . . . Power 1 | . . . . . 1 . . . Propulsion 2 | . . . . 1 1 . . . Utility 3 | . . 2 . 1 . . . . Weapon . | . . . . . . . . . Parts Attached 92 | 7 1 7 20 23 6 19 8 1 Power 13 | 1 . 1 3 2 1 3 1 1 Engine 7 | 1 . 1 3 . . 2 . . Core 6 | . . . . 2 1 1 1 1 Reactor . | . . . . . . . . . Propulsion 25 | 3 . 4 5 3 1 5 4 . Treads 18 | 2 . 2 5 3 1 5 . . Leg 7 | 1 . 2 . . . . 4 . Wheel . | . . . . . . . . . Hover . | . . . . . . . . . Flight . | . . . . . . . . . Utility 29 | 1 1 2 9 6 4 4 2 . Device 10 | . . . 4 2 1 2 1 . Storage 5 | 1 . . . 4 . . . . Processor 4 | . 1 1 1 . . . 1 . Hackware . | . . . . . . . . . Protection 10 | . . 1 4 . 3 2 . . Artifact . | . . . . . . . . . Weapon 25 | 2 . . 3 12 . 7 1 . Energy Gun 6 | . . . 1 5 . . . . Energy Cannon 2 | . . . . . . 1 1 . Ballistic Gun 10 | 2 . . 2 3 . 3 . . Ballistic Cannon 2 | . . . . 1 . 1 . . Launcher 3 | . . . . 3 . . . . Special Weapon . | . . . . . . . . . Impact Weapon 1 | . . . . . . 1 . . Slashing Weapon 1 | . . . . . . 1 . . Piercing Weapon . | . . . . . . . . . Special Melee Weapon . | . . . . . . . . . Unidentified Prototypes 1 | . . . . 1 . . . . Corrupted Parts 3 | . . . . . . 1 2 . System Corruption 15 | . . . . . . 4 11 . Parts Lost 36 | . . . 10 1 3 11 3 8 Power 7 | . . . 1 . . 2 1 3 Propulsion 11 | . . . 1 1 1 4 1 3 Utility 12 | . . . 5 . 2 3 1 1 Weapon 6 | . . . 3 . . 2 . 1 Highest Loss Streak 8 | . . . 3 1 3 5 3 8 To Critical Strikes . | . . . . . . . . . Average Slot Usage (%) 92 | . 99 99 95 88 99 89 89 98 Engine 6 | . 14 11 10 . . 7 3 . Core 5 | . . . . 8 15 6 7 14 Treads 19 | . 28 5 21 19 29 22 13 . Leg 3 | . . 16 . . . . 11 30 Device 8 | . . . 8 22 21 1 . 7 Storage 14 | . 14 11 11 18 15 15 15 15 Processor 5 | . 13 21 8 2 . . 6 7 Protection 10 | . . 11 13 . 1 19 11 6 Energy Gun 1 | . . . 1 5 . . . . Energy Cannon 2 | . . . . . . 5 6 7 Ballistic Gun 9 | . 28 22 18 7 7 3 . . Ballistic Cannon 1 | . . . . 2 7 2 . . Slashing Weapon 1 | . . . . . . . 7 7 Naked Turns . | . . . . . . . . . Heaviest Build 104 | 14 14 19 26 72 96 104 93 81 Greatest Support 94 | 40 40 40 40 72 94 86 60 50 Greatest Overweight (x) 31 | 2 . . . 2 1 31 7 2 Average Overweight (x) . | . . . . . . 1 1 1 Largest Inventory Capacity 20 | 8 8 8 8 20 20 20 20 20 Average Capacity 14 | 7 8 8 8 10 20 20 20 20 Most Carried 20 | 6 8 8 8 12 17 20 20 20 Average Carried 12 | 4 7 6 7 9 15 15 18 19 Final Capacity 20 | 8 8 8 8 20 20 20 20 20 Final Carried 20 | 6 7 8 7 12 15 15 20 19 Class Distribution -------------------- 83% | Mutant 16% | Scavenger-Mutant Dominant Class ---------------- Mutant | -10/Materials Mutant | -9/Materials Mutant | -9/Storage Mutant | -8/Materials Mutant | -7/Factory Mutant | -7/Lower Caves Scavenger-Mutant | -7/Lower Caves Mutant | -7/Data Miner Resources | -11 -10 -9 -9 -8 -7 -7 -7 -7 ----------- Run | Yrd Mat Mat Sto Mat Fac Low Low Dat Matter Collected 2202 | 234 72 148 524 707 3 362 152 . Remotely . | . . . . . . . . . Salvage Created 3038 | 13 72 271 1196 891 . 298 270 27 Parts 161 | 2 7 19 72 33 . 13 13 2 Haulers Intercepted 1 | . . . . 1 . . . . Recyclers Shooed 2 | . . . 2 . . . . . Parts Field Recycled . | . . . . . . . . . Retrieved Matter . | . . . . . . . . . Parts Self-Destructed 16 | . . . . . . 9 7 . Prevented 10 | . . . . . . 4 6 . Kills | -11 -10 -9 -9 -8 -7 -7 -7 -7 ------- Run | Yrd Mat Mat Sto Mat Fac Low Low Dat Combat Hostiles Destroyed 63 | . 2 6 26 17 . 7 5 . Melee 5 | . . . 1 . . 2 2 . Guns 44 | . 2 6 25 7 . 4 . . Cannons 9 | . . . . 7 . 1 1 . AOE 3 | . . . . 3 . . . . Classes Destroyed 12 | 1 2 2 2 3 . 1 1 . Worker 1 | . . . . 1 . . . . Builder 1 | . . . 1 . . . . . Tunneler 2 | 1 1 . . . . . . . Hauler 1 | . . . . 1 . . . . Recycler 1 | . . . . 1 . . . . Operator 1 | . . . 1 . . . . . Watcher 4 | . 1 . 1 2 . . . . Swarmer 7 | . 2 1 . 3 . 1 . . Grunt 40 | . . 2 18 12 . 4 4 . Brawler 1 | . . . . . . 1 . . Sentry 14 | . . 3 8 2 . 1 . . Hunter 1 | . . . . . . . 1 . Best Kill Streak 7 | 1 3 3 7 5 . 3 4 1 Combat Bots Only 6 | . 2 3 6 4 . 3 4 . Max Kills in Single Turn 3 | 1 1 1 2 3 . 1 1 1 Gunslinging 1 | . . . 1 . . . . . Exploded 3 | . . . . 3 . . . . Melee 1 | . . . 1 . . 1 1 . Uniques/NPCs Destroyed 1 | . . . . . . . . 1 Data Miner (-7/Data Miner) Combat | -11 -10 -9 -9 -8 -7 -7 -7 -7 -------- Run | Yrd Mat Mat Sto Mat Fac Low Low Dat Hostile Shots Fired 849 | . 6 46 182 130 183 222 50 30 Missed 240 | . 2 16 55 36 57 51 12 11 Damage Taken 6160 | . 27 283 1274 867 682 1866 453 708 Core 924 | . . 41 96 87 43 322 26 309 Absorbed by Shields 554 | . . . . 268 286 . . . Ignored by Resistances 1949 | . 8 85 383 326 309 521 130 187 Core Remaining (%) 87 | 100 100 . 65 84 . . . . Volleys Fired 197 | 1 4 13 76 59 12 21 8 3 Largest 2 | 2 2 2 2 2 2 2 1 1 Hottest 102 | 40 40 40 86 91 73 102 69 69 Shots Fired 349 | 2 8 26 130 113 24 34 8 4 Gun 283 | 2 8 26 130 87 12 18 . . Cannon 62 | . . . . 22 12 16 8 4 Launcher 4 | . . . . 4 . . . . Special . | . . . . . . . . . Kinetic 266 | 2 8 26 92 96 24 18 . . Thermal 38 | . . . 38 . . . . . Explosive 2 | . . . . 2 . . . . Electromagnetic 43 | . . . . 15 . 16 8 4 Robot Hit Streak 31 | 1 2 28 26 19 20 19 27 31 Robot Miss Streak 3 | . 1 . 3 2 3 1 . . Penetration Max 1 | . . . . . . 1 . . Secondary Targets 9 | . . 2 6 1 . . . . Max Gunslinging Chain 1 | . . 1 1 1 . . . . Shots Hit Robots 292 | 1 4 26 112 89 13 29 14 4 Core Hits 125 | 1 4 12 55 34 2 11 5 1 Critical Kills . | . . . . . . . . . Critical Parts Destroyed 2 | . . . 1 . . 1 . . Critical Strikes 11 | . . . 3 3 2 1 2 . Burn 2 | . . . 2 . . . . . Destroy 2 | . . . 1 . . 1 . . Blast 5 | . . . . 3 2 . . . Sever 2 | . . . . . . . 2 . Melee Attacks 8 | . . . . . . . 8 . Impact . | . . . . . . . . . Slashing 8 | . . . . . . . 8 . Piercing . | . . . . . . . . . Sneak Attacks . | . . . . . . . . . Combat Hostiles . | . . . . . . . . . Follow-up Attacks . | . . . . . . . . . Damage Inflicted 5719 | 29 53 325 1600 2132 315 681 467 117 Guns 3521 | 27 53 325 1584 1028 143 361 . . Cannons 1257 | . . . . 538 172 248 243 56 Explosions 587 | . . . . 526 . . . 61 Melee 224 | . . . . . . . 224 . Ramming 130 | 2 . . 16 40 . 72 . . Kinetic 3748 | 27 53 325 1195 1472 315 361 . . Thermal 508 | . . . 389 58 . . . 61 Explosive 393 | . . . . 393 . . . . Electromagnetic 716 | . . . . 169 . 248 243 56 Impact . | . . . . . . . . . Slashing 224 | . . . . . . . 224 . Piercing . | . . . . . . . . . Highest Corruption 15 | . . . 1 . . 4 15 15 Average Corruption 4 | . . . 1 . . 4 8 15 Corruption Purged . | . . . . . . . . . Corruption Blocked . | . . . . . . . . . Effects 75 | . . . 14 . . 15 37 9 Message Errors 24 | . . . 3 . . 2 15 4 Matter Fused 25 | . . . 6 . . 5 11 3 Heat Flow Errors 9 | . . . 1 . . 2 6 . Energy Discharges 8 | . . . 2 . . 2 3 1 Data Loss (minor) 4 | . . . 2 . . 2 . . Data Loss (major) 2 | . . . . . . 1 1 . Misfires 1 | . . . . . . . . 1 Alerts 1 | . . . . . . . 1 . Weapon Failures 1 | . . . . . . 1 . . Overload Shots . | . . . . . . . . . Overflow Damage 68 | . . . . 42 . 15 11 . Projectiles 15 | . . . . . . 15 . . Explosions 42 | . . . . 42 . . . . Melee 11 | . . . . . . . 11 . Knockbacks 7 | . . . . 3 3 1 . . Impact 2 | . . . . 1 . 1 . . Kinetic 5 | . . . . 2 3 . . . Secondary . | . . . . . . . . . Self-Inflicted Damage 28 | . . . . 28 . . . . Shots 1 | . . . . 1 . . . . Rammed 30 | 1 . . 5 7 . 17 . . Targets Rammed 33 | 1 . . 6 7 . 19 . . Kicked . | . . . . . . . . . Crushed 3 | . . . 1 . . 2 . . Highest Temperature 762 | . . 16 328 111 200 762 266 34 Average Temperature 141 | . . 6 107 24 102 279 111 26 Received Heat Transfer 3084 | . . 183 786 547 410 834 324 . Effects 42 | . . . 5 . . 37 . . Shutdowns 13 | . . . . . . 13 . . Energy Bleed 2 | . . . . . . 2 . . Interference 11 | . . . 3 . . 8 . . Matter Decay 2 | . . . 1 . . 1 . . Short Circuit 4 | . . . 1 . . 3 . . Damage (minor) 4 | . . . . . . 4 . . Damage (major) 5 | . . . . . . 5 . . Damage (core) 1 | . . . . . . 1 . . Siege Activations . | . . . . . . . . . Robots Corrupted 2 | . . . . . . . 2 . Combat Hostiles 2 | . . . . . . . 2 . Parts Fried 1 | . . . . . . . 1 . Impact Corruptions . | . . . . . . . . . Robots Melted . | . . . . . . . . . Combat Hostiles . | . . . . . . . . . Parts Melted 8 | . . . 8 . . . . . Heat Transferred 1469 | . . . 1369 50 . . . 50 Parts Sabotaged . | . . . . . . . . . Parts Stolen . | . . . . . . . . . Parts Stripped . | . . . . . . . . . Power Chain Reactions 2 | . . . . 1 . . . 1 Alert | -11 -10 -9 -9 -8 -7 -7 -7 -7 ------- Run | Yrd Mat Mat Sto Mat Fac Low Low Dat Peak Influence 312 | 5 81 239 312 266 66 . . . Initial 85 | . 2 28 85 36 27 . . . Average 107 | 1 50 91 166 84 38 . . . Maximum Alert Level 1 | . . 1 1 1 . . . . Low Security (%) 86 | 100 100 96 70 94 100 . . . Level 1 13 | . . 3 29 5 . . . . Level 2 . | . . . . . . . . . Level 3 . | . . . . . . . . . Level 4 . | . . . . . . . . . Level 5 . | . . . . . . . . . High Security . | . . . . . . . . . Max Security . | . . . . . . . . . Squads Dispatched 9 | . . . 4 3 2 . . . Investigation 4 | . . . 2 2 . . . . Extermination . | . . . . . . . . . Reinforcement 4 | . . . 2 1 1 . . . Assault . | . . . . . . . . . Garrison 1 | . . . . . 1 . . . Intercept . | . . . . . . . . . Searches Triggered . | . . . . . . . . . Construction Impeded . | . . . . . . . . . Haulers Reinforced . | . . . . . . . . . Active Scanning Responses . | . . . . . . . . . Cargo Convoy Interrupts . | . . . . . . . . . Stealth | -11 -10 -9 -9 -8 -7 -7 -7 -7 --------- Run | Yrd Mat Mat Sto Mat Fac Low Low Dat Distress Signals 7 | . . . 4 2 1 . . . Communications Jammed . | . . . . . . . . . Distress Signals . | . . . . . . . . . Times Spotted 106 | . 5 12 35 26 7 11 5 5 Peak Tracking Total 7 | . 3 5 7 5 5 4 4 4 Tactical Retreats 9 | . . . 2 6 . 1 . . Traps | -11 -10 -9 -9 -8 -7 -7 -7 -7 ------- Run | Yrd Mat Mat Sto Mat Fac Low Low Dat Traps Triggered 4 | . . . 3 1 . . . . Indirectly . | . . . . . . . . . Trap Hack Attempts . | . . . . . . . . . Triggered . | . . . . . . . . . Disarmed . | . . . . . . . . . Reprogrammed . | . . . . . . . . . Reused . | . . . . . . . . . Traps Extracted . | . . . . . . . . . Installed . | . . . . . . . . . Triggered . | . . . . . . . . . Machines | -11 -10 -9 -9 -8 -7 -7 -7 -7 ---------- Run | Yrd Mat Mat Sto Mat Fac Low Low Dat Machines Disabled 3 | . . . . 2 . . . 1 Max in Single Turn 1 | . . . . 1 . . . 1 Machines Repaired . | . . . . . . . . . Machines Dismantled . | . . . . . . . . . Machines Sabotaged . | . . . . . . . . . Overloaded Fab Kills . | . . . . . . . . . Hacking | -11 -10 -9 -9 -8 -7 -7 -7 -7 --------- Run | Yrd Mat Mat Sto Mat Fac Low Low Dat Machines Accessed 18 | . 1 3 5 2 1 1 1 4 Terminals 9 | . 1 1 3 2 1 1 . . Fabricators . | . . . . . . . . . Repair Stations 1 | . . . 1 . . . . . Recycling Units 2 | . . 1 1 . . . . . Scanalyzers 1 | . . 1 . . . . . . Garrison Access . | . . . . . . . . . Total Hacks 56 | . 3 4 10 5 1 2 1 30 Successful 47 | . 2 2 6 3 1 2 1 30 Failed 9 | . 1 2 4 2 . . . . Catastrophic 2 | . 1 . 1 . . . . . Database Lockouts . | . . . . . . . . . Manual 18 | . 3 2 7 5 . . . 1 Terminals 21 | . 3 2 8 5 1 2 . . Fabricators . | . . . . . . . . . Repair Stations 1 | . . . 1 . . . . . Recycling Units 2 | . . 1 1 . . . . . Scanalyzers 1 | . . 1 . . . . . . Garrison Access . | . . . . . . . . . Terminal Hacks 44 | . 2 1 4 3 1 2 1 30 Record 13 | . . . . . . 2 . 11 Part Schematic 10 | . . . . . . . . 10 Robot Schematic 6 | . . . . . . . . 6 Prototype ID Bank 3 | . . . . . . . . 3 Open Door 2 | . . . 1 . . . 1 . Open DSF 1 | . . . . . 1 . . . Branch Access Points 4 | . 1 1 1 1 . . . . Emergency Access Points 3 | . 1 . 1 1 . . . . Disarm Traps 1 | . . . . 1 . . . . Zone Layout 1 | . . . 1 . . . . . Fabricator Hacks . | . . . . . . . . . Repair Station Hacks 1 | . . . 1 . . . . . Refit 1 | . . . 1 . . . . . Recycling Unit Hacks 2 | . . 1 1 . . . . . Report Inventory 1 | . . 1 . . . . . . Retrieve Matter 1 | . . . 1 . . . . . Scanalyzer . | . . . . . . . . . Garrison Access Hacks . | . . . . . . . . . Unauthorized Hacks . | . . . . . . . . . Terminals . | . . . . . . . . . Fabricators . | . . . . . . . . . Repair Stations . | . . . . . . . . . Recycling Units . | . . . . . . . . . Scanalyzers . | . . . . . . . . . Garrison Access . | . . . . . . . . . Data Cores Recovered . | . . . . . . . . . Used . | . . . . . . . . . Hacking Detections 5 | . . . 2 2 1 . . . Full Trace Events 3 | . . . 2 1 . . . . Feedback Events . | . . . . . . . . . Feedback Blocked . | . . . . . . . . . Robot Schematics Acquired 6 | . . . . . . . . 6 Robots Built . | . . . . . . . . . Authchips . | . . . . . . . . . Time . | . . . . . . . . . Total Robot Build Rating . | . . . . . . . . . Part Schematics Acquired 10 | . . . . . . . . 10 Parts Built . | . . . . . . . . . Authchips . | . . . . . . . . . Time . | . . . . . . . . . Total Part Build Rating . | . . . . . . . . . Parts Repaired . | . . . . . . . . . Time . | . . . . . . . . . Parts Recycled . | . . . . . . . . . Recycled Matter . | . . . . . . . . . Retrieved Matter 162 | . . . 162 . . . . . Retrieved Components . | . . . . . . . . . Parts Scanalyzed . | . . . . . . . . . Part Schematics Acquired . | . . . . . . . . . Parts Damaged . | . . . . . . . . . Bothacking | -11 -10 -9 -9 -8 -7 -7 -7 -7 ------------ Run | Yrd Mat Mat Sto Mat Fac Low Low Dat Used RIF Installer . | . . . . . . . . . Robots Hacked . | . . . . . . . . . Non-combat . | . . . . . . . . . Combat . | . . . . . . . . . Robot Hacks Applied . | . . . . . . . . . Relay Couplers Released . | . . . . . . . . . Fabnet Peak Effective % . | . . . . . . . . . Robots Rewired . | . . . . . . . . . Allies Hacked . | . . . . . . . . . Hacks Repelled . | . . . . . . . . . Allies | -11 -10 -9 -9 -8 -7 -7 -7 -7 -------- Run | Yrd Mat Mat Sto Mat Fac Low Low Dat Total Allies . | . . . . . . . . . Largest Group . | . . . . . . . . . Highest-Rated Group . | . . . . . . . . . Highest-Rated Ally . | . . . . . . . . . Total Orders . | . . . . . . . . . Ally Attacks . | . . . . . . . . . Total Damage . | . . . . . . . . . Kills . | . . . . . . . . . Allies Corrupted . | . . . . . . . . . Allies Melted . | . . . . . . . . . Intel | -11 -10 -9 -9 -8 -7 -7 -7 -7 ------- Run | Yrd Mat Mat Sto Mat Fac Low Low Dat Robot Analysis Total . | . . . . . . . . . Derelict Logs Recovered 1 | . . . . . . 1 . . Drone Launches . | . . . . . . . . . Drone Recoveries . | . . . . . . . . . Exploration | -11 -10 -9 -9 -8 -7 -7 -7 -7 ------------- Run | Yrd Mat Mat Sto Mat Fac Low Low Dat Turns Passed 7338 | 108 309 351 1653 1375 406 1670 1282 184 Spaces Moved 3242 | 60 183 229 727 624 236 538 553 92 Core 26 | 15 . . . . . 11 . . Treads 2673 | 45 183 46 727 624 236 527 285 . Legs 543 | . . 183 . . . . 268 92 Wheels . | . . . . . . . . . Hover . | . . . . . . . . . Flight . | . . . . . . . . . Fastest Speed 50 | 50 160 120 160 145 145 225 190 190 Average Speed 191 | 144 160 128 160 178 147 282 221 192 Slowest Speed 1600 | 160 160 160 160 320 225 1600 610 260 Overloaded Moves . | . . . . . . . . . Propulsion Burnouts . | . . . . . . . . . Robots Hopped . | . . . . . . . . . Cave-ins Triggered . | . . . . . . . . . Exploration Rate (%) 40 | 4 36 21 66 33 4 61 63 76 Regions Visited 8 Branch Regions 4 Pre-discovered Areas 1 | . . . . . . . . 1 Known Exits Taken 1 | . . 1 . . . . . . Unknown Exits Taken 7 | 1 1 . 1 1 1 1 1 . Scrap Searched 4 | . . . . . . 2 2 . Spaces Dug . | . . . . . . . . . Terrain Destroyed 25 | . . . . 18 5 2 . . Melee . | . . . . . . . . . Projectile 12 | . . . . 5 5 2 . . AOE 13 | . . . . 13 . . . . Terrain Rammed . | . . . . . . . . . Walls Destroyed . | . . . . . . . . . Machines Disabled . | . . . . . . . . . Actions | -11 -10 -9 -9 -8 -7 -7 -7 -7 --------- Run | Yrd Mat Mat Sto Mat Fac Low Low Dat Total 3996 | 77 192 262 1093 795 275 615 591 96 Wait 260 | . . 2 225 14 13 1 5 . Move 3234 | 59 182 228 726 623 235 537 552 92 Hop . | . . . . . . . . . Pick Up 93 | 9 3 7 18 33 7 10 6 . Fast Attach 24 | 3 1 1 4 7 . 4 4 . Attach 57 | 3 . 4 13 12 6 14 4 1 Detach 21 | . . . 4 6 2 6 3 . Swap 11 | 1 . 2 3 4 . 1 . . Drop 55 | . 2 5 15 30 . 2 1 . Fire 197 | 1 4 13 76 59 12 21 8 3 Melee 8 | . . . . . . . 8 . Ram . | . . . . . . . . . Kick . | . . . . . . . . . Crush 33 | 1 . . 6 7 . 19 . . Escape Stasis . | . . . . . . . . . Rewire 3 | . . . 3 . . . . . Trap . | . . . . . . . . . Miscellaneous . | . . . . . . . . . Route ------- -11/Scrapyard -10/Materials (discovered 3 exits: *Mat / Min x2) -9/Materials (discovered 3 exits: Min / *Sto x2) -9/Storage (discovered 2 exits: *Mat / Rec) -8/Materials -7/Factory -7/Lower Caves -7/Lower Caves (discovered 2 exits: [*Fac] / *Dat) -7/Data Miner (discovered 1 exit: [*Pro]) History --------- Turn | Location | Event 8 | -11/Scrapyard | Discovered new exit (range 15) 109 | -11/Scrapyard | Entered Materials 223 | -10/Materials | Identified exit to Mines 273 | -10/Materials | Discovered new exit (range 15) 311 | -10/Materials | Build established: Mutant 418 | -10/Materials | Entered another Materials area 418 | -9/Materials | Evolved 2 slots: Utility x2 715 | -9/Materials | Identified exit to Mines 715 | -9/Materials | Identified exit to Storage 769 | -9/Materials | Entered Storage 1107 | -9/Storage | Identified exit to Recycling 2316 | -9/Storage | Discovered new exit (range 12) 2367 | -9/Storage | Found Prototype Launcher 2391 | -9/Storage | Lost 3 parts (1p1n1u) 2422 | -9/Storage | Entered Materials 2422 | -8/Materials | Evolved 2 slots: Propulsion x1, Utility x1 2423 | -8/Materials | Identified Gui. Missile Launcher 3716 | -8/Materials | Discovered new exit (range 3) 3797 | -8/Materials | Entered Factory 3797 | -7/Factory | Evolved 2 slots: Power x1, Propulsion x1 4117 | -7/Factory | Garrison activated, responded to threat 4129 | -7/Factory | Discovered new exit (range 11) 4203 | -7/Factory | Entered Lower Caves 4228 | -7/Lower Caves | Lost 3 parts (1n2u) 4382 | -7/Lower Caves | Spotted B-75 Beast 5029 | -7/Lower Caves | Learned location of 1 exit from Factory 5131 | -7/Lower Caves | Attracted the attention of an 0b10 checkpoint 5578 | -7/Lower Caves | Lost 5 parts (1p2u2w) 5830 | -7/Lower Caves | Discovered new exit (range 12) 5856 | -7/Lower Caves | Core integrity fell below 50% 5873 | -7/Lower Caves | Entered another Lower Caves area 5896 | -7/Lower Caves | Encountered a Warlord checkpoint 5905 | -7/Lower Caves | Discovered new exit (range 16) 5950 | -7/Lower Caves | Build established: Scavenger-Mutant 6640 | -7/Lower Caves | Lost 3 parts (1p1n1u) 6645 | -7/Lower Caves | System corruption reached 10% 6886 | -7/Lower Caves | Build established: Mutant 6934 | -7/Lower Caves | Discovered new exit (range 7) 7155 | -7/Lower Caves | Entered Data Miner 7155 | -7/Data Miner | Discovered new exit (range 6) 7195 | -7/Data Miner | Met Data Miner 7266 | -7/Data Miner | Learned location of Section 7 (-2) 7266 | -7/Data Miner | Acquired the access code to Warlord's prototype stash 7302 | -7/Data Miner | Received God Mode back door access code from Data Miner 7322 | -7/Data Miner | Destroyed Data Miner 7322 | -7/Data Miner | Data Conduit disabled 7335 | -7/Data Miner | Core integrity fell below 20% 7339 | -7/Data Miner | Destroyed by Enhanced Grunt with Neutron Cannon Last Messages --------------- 07322_ System corrupted: FCS attempts to trigger Imp. EM Pulse Cannon. 07322_ System corrupted: Imp. EM Pulse Cannon misfires. 07322_ Chain reaction triggered in Lgt. Angular Momentum Engine. 07322_ Data Miner destroyed. 07322_ Data Conduit disabled. 07325_ Hrd. Medium Armor Plating destroyed. 07326_ Mic. Nuclear Core destroyed. 07331_ Carbon-fiber Leg destroyed. Warning: Alt-Tabbing between programs is known to cause issues with some software requiring use of the Alt key, leaving a program unaware of the key's current state, and defaulting to off when the program checks. Keyboard commands such as panning the map may instead move Cogmind after an Alt-Tab. To prevent this possibility, consider tapping the Alt key again after returning to Cogmind in order to reset it. See the manual for more info. 07335_ Aluminum Leg destroyed. 07338_ Imp. EM Pulse Cannon destroyed. 07338_ Aluminum Leg destroyed. 07339_ Neutrino Core destroyed. [Achievement: 5k Club] Map ----- +----------------------------------------------------+ | | | | | | | | | | | | | | | | | | | | | | | | | | | | | | | ????????????????????????????????????????????????? | | ????????????????????????????????????????????????? | | ????????????????????????????????????????????????? | | ????????????????????????????????????????????????? | | ????????????????????????????????????####????????? | | ?????###############????#####?#???### #????????? | | ?????""""""""""""""###### # # #?### #????????? | | ????"""""""" """"""""#g;g# # ## < ##????????? | | ???""""""""" ######???? | | ???"""""" g g #???? | | ???""""" @ #???? | | ???"""""% #???? | | ???""""" ##???? | | ???""""" "" """"""""""""#####????? | | ???""""""" """ ;##############????????? | | ????"""""" """##;#?????????????????????? | | ?????""""""" "########?????????????????????? | | ?????######"## "#????????????????????????????? | | ??????????#"### "#????????????????????????????? | | ??????????#"### "#????????????????????????????? | | ??????????#"## "#????????????????????????????? | | ??????????#"## "#????????????????????????????? | | ????????????# "#????????????????????????????? | | ????????????### "#????????????????????????????? | | ??????????????# "##???????????????????????????? | | ?????????????## ""#???????????????????????????? | | ??????????#?## ""#???????????????????????????? | | ?????????##"#"X ""#???????????????????????????? | | ?????????""""" "####????????????????????????? | | ?????????""""" X"""""????????????????????????? | | ?????????##"#"X "##"#????????????????????????? | | ??????????#?## X""""#????????????????????????? | | ?????????????## "##"#????????????????????????? | | ??????????????#######???????????????????????????? | | ????????????????????????????????????????????????? | +----------------------------------------------------+ Best States ------------- Heat Dissipation 53 Energy Generation 27 Energy Capacity 480 Matter Stores 300 Matter Capacity 300 Sight Range 16 Terrain Scan Range 14 Terrain Scan Density 85 Additional Mass Support 6 Armor Coverage 675 Resistance: KI 20 Resistance: TH 20 Resistance: EX 20 Resistance: EM 20 Resistance: I 20 Resistance: S 20 Resistance: P 20 Evasion (%) 55 Targeting Accuracy 10 Melee Accuracy 5 Recoil Reduction 4 Offensive Hacking 10 Item Schematics ----------------- Combat Drone Bay | -7/Data Miner | Free Lgt. Regenerative Plating | -7/Data Miner | Free Biomechanical Wings | -7/Data Miner | Free Gravity Neutralizer | -7/Data Miner | Free Force Rifle | -7/Data Miner | Free Nuclear Pulse Array | -7/Data Miner | Free Imp. Recalibrator | -7/Data Miner | Free Phase Gun | -7/Data Miner | Free Lrn. Proton Cannon | -7/Data Miner | Free Adv. Melee Analysis Suite | -7/Data Miner | Free Robot Schematics ------------------ G-47 Trooper | -7/Data Miner | Free B-48 Gladiator | -7/Data Miner | Free L-41 Fighter | -7/Data Miner | Free O-24 Administrator | -7/Data Miner | Free R-10 Processor | -7/Data Miner | Free Y-64 Sentinel | -7/Data Miner | Free Fabricated ------------ Nothing Alien Tech Used ----------------- None Achievements -------------- 5k Club Librarian Power Corrupts The Oracle Challenges ------------ None Game ------ Seed zuluyankeexray Manual? 1 Play Time 01:08:08 Cumulative 4.7 hours Start 2024.04.07 @ 13:52:08 End 2024.04.07 @ 15:04:42 Sessions 1 Manual Loads 0 Difficulty Adventurer Special Mode None Game No. 11 Rogue 9 Adventurer 1 Explorer 1 Win Type - Total 0 Types 0/0/0/0/0/0/0/0/0 Lore% 2 Gallery% 9 Achievement% 9 Wizard Run 0 Options --------- Layout 0 ASCII 1 Keyboard 1 Movement Arrows Keybinds 0 Fullscreen 2 Font 24/Cog Map View 76x50 Zoom Use 0% Tactical HUD 1 Map Filters NONE Filters NONE Steam 1 RUN: cdbb4ae3-7908-495b-8aea-933277084705